[Event "SVK Extraliga 2019-20"]
[Site "Slovakia"]
[Date "2020.03.01"]
[Round "8.7"]
[White "Cibickova, Zuzana"]
[Black "Zambor, Norbert"]
[Result "1/2-1/2"]
[ECO "B00"]
[WhiteElo "2253"]
[BlackElo "2252"]
[Annotator "ChessBase"]
[PlyCount "110"]
[EventDate "2019.10.19"]
[EventType "team-tourn"]
[EventCountry "SVK"]
[SourceTitle "playchess.com"]
[Source "ChessBase"]
[SourceQuality "1"]
[WhiteTeam "Podhajska"]
[BlackTeam "Prakovce"]
[TimeControl "40/5400+30:1800+30"]

1. e4 {[%emt 0:00:00]} e6 {[%emt 0:07:10]} 2. d4 {[%emt 0:02:23]} d5 {[%emt 0:00:15]} 3. Nc3 {[%emt 0:00:29]} Nf6 {[%emt 0:00:09]} 4. e5 {[%emt 0:00:22]} Nfd7 {[%emt 0:00:07]} 5. f4 {[%emt 0:00:10]} c5 {[%emt 0:00:07]} 6. Nf3 {[%emt 0:00:04]} Nc6 {[%emt 0:00:08]} 7. Be3 {[%emt 0:00:11]} a6 {[%emt 0:03:06]} 8. Qd2 {[%emt 0:00:20]} b5 {[%emt 0:11:48]} 9. dxc5 {[%emt 0:00:16]} Nxc5 {[%emt 0:02:03]} 10. Qf2 {[%emt 0:23:03]} b4 {[%emt 0:05:00]} 11. Bxc5 {[%emt 0:03:12]} bxc3 {[%emt 0:00:24]} 12. b3 {[%emt 0:01:07]} Be7 {[%emt 0:04:20]} 13. Bd3 {[%emt 0:07:46]} Rb8 {[%emt 0:04:17]} 14. Bxe7 {[%emt 0:07:29]} Qxe7 {[%emt 0:00:38]} 15. O-O {[%emt 0:00:14]} g6 {[%emt 0:12:39]} 16. Kh1 {[%emt 0:02:04]} Nb4 {[%emt 0:03:21]} 17. Qd4 {[%emt 0:03:05]} Bd7 {[%emt 0:10:21]} 18. Qxc3 {[%emt 0:05:25]} O-O {[%emt 0:00:32]} 19. Qd2 {[%emt 0:07:51]} Rfc8 {[%emt 0:01:20]} 20. Rfc1 {[%emt 0:05:45]} a5 {[%emt 0:06:29]} 21. c3 {[%emt 0:09:29]} Nxd3 {[%emt 0:04:25]} 22. Qxd3 {[%emt 0:00:04]} Bb5 {[%emt 0:06:26]} 23. Qe3 {[%emt 0:03:13]} Rc5 {[%emt 0:04:18]} 24. a4 {[%emt 0:05:19]} Ba6 {[%emt 0:01:36]} 25. Nd4 {[%emt 0:00:08]} Rbc8 {[%emt 0:01:07]} 26. Ra2 {[%emt 0:00:53]} Qh4 {[%emt 0:04:10]} 27. Rac2 {[%emt 0:01:36]} h6 {[%emt 0:00:41]} 28. h3 {[%emt 0:01:33]} g5 {[%emt 0:02:03]} 29. fxg5 {[%emt 0:06:06]} Qxg5 {[%emt 0:00:23]} 30. Re1 {[%emt 0:00:34]} Qg6 {[%emt 0:01:40]} 31. Rd1 {[%emt 0:02:20]} Qg5 {[%emt 0:00:18]} 32. Qe1 {[%emt 0:00:47]} Qg6 {[%emt 0:00:34]} 33. Qd2 {[%emt 0:02:03]} Qg5 {[%emt 0:00:16]} 34. Qe1 {[%emt 0:00:46]} Qg6 {[%emt 0:00:04]} 35. Rdc1 {[%emt 0:00:40]} Bd3 {[%emt 0:00:33]} 36. Rf2 {[%emt 0:00:13]} Qg3 {[%emt 0:02:07]} 37. Nf3 {[%emt 0:00:54]} Be4 {[%emt 0:00:35]} 38. Qe3 {[%emt 0:00:31]} Rxc3 {[%emt 0:01:01]} 39. Rxc3 {[%emt 0:00:06]} Rxc3 {[%emt 0:00:07]} 40. Qxc3 {[%emt 0:00:13]} Qxf2 {[%emt 0:00:04]} 41. Qc8+ {[%emt 0:16:22]} Kg7 {[%emt 0:08:57]} 42. Qd8 {[%emt 0:00:31]} Bxf3 {[%emt 0:05:20]} 43. Qf6+ {[%emt 0:00:24]} Kg8 {[%emt 0:00:07]} 44. gxf3 {[%emt 0:00:45]} Qf1+ {[%emt 0:10:12]} 45. Kh2 {[%emt 0:00:01]} Qf2+ {[%emt 0:01:24]} 46. Kh1 {[%emt 0:00:02]} Qg3 {[%emt 0:05:19]} 47. h4 {[%emt 0:01:37]} h5 {[%emt 0:01:10]} 48. Qd8+ {[%emt 0:01:41]} Kg7 {[%emt 0:00:21]} 49. Qf6+ {[%emt 0:00:28]} Kg8 {[%emt 0:00:16]} 50. Qd8+ {[%emt 0:00:09]} Kh7 {[%emt 0:01:35]} 51. Qf6 {[%emt 0:00:25]} Qg6 {[%emt 0:01:27]} 52. Qf4 {[%emt 0:00:29]} Kg7 {[%emt 0:00:30]} 53. Kh2 {[%emt 0:04:31]} Qc2+ {[%emt 0:00:56]} 54. Kg3 {[%emt 0:03:02]} Qxb3 {[%emt 0:01:22]} 55. Qg5+ {[%emt 0:00:09]} Kf8 {[%emt 0:00:05]} 1/2-1/2

[Event "SVK Extraliga 2019-20"]
[Site "Slovakia"]
[Date "2020.03.01"]
[Round "8.7"]
[White "Bombek, Peter"]
[Black "Sepesi, Samuel"]
[Result "1/2-1/2"]
[ECO "A45"]
[WhiteElo "2161"]
[BlackElo "2161"]
[Annotator "ChessBase"]
[PlyCount "67"]
[EventDate "2019.10.19"]
[EventType "team-tourn"]
[EventCountry "SVK"]
[SourceTitle "playchess.com"]
[Source "ChessBase"]
[SourceQuality "1"]
[WhiteTeam "Dubnica"]
[BlackTeam "Snina"]
[TimeControl "40/5400+30:1800+30"]

1. d4 {[%emt 0:00:00]} Nf6 {[%emt 0:00:00]} 2. Bg5 {[%emt 0:00:02]} d5 {[%emt 0:03:17]} 3. Nd2 {[%emt 0:00:21]} Nbd7 {[%emt 0:00:13]} 4. Ngf3 {[%emt 0:00:33]} g6 {[%emt 0:00:27]} 5. e3 {[%emt 0:00:23]} Bg7 {[%emt 0:00:09]} 6. c4 {[%emt 0:00:45]} c6 {[%emt 0:02:07]} 7. Bd3 {[%emt 0:01:18]} O-O {[%emt 0:01:41]} 8. O-O {[%emt 0:00:58]} Re8 {[%emt 0:11:42]} 9. Rc1 {[%emt 0:03:27]} Qb6 {[%emt 0:18:47]} 10. Qc2 {[%emt 0:04:01]} e5 {[%emt 0:04:07]} 11. Nxe5 {[%emt 0:11:16]} Nxe5 {[%emt 0:00:44]} 12. dxe5 {[%emt 0:00:08]} Rxe5 {[%emt 0:02:37]} 13. Nf3 {[%emt 0:02:39]} Re8 {[%emt 0:03:48]} 14. Bxf6 {[%emt 0:16:24]} Bxf6 {[%emt 0:00:33]} 15. cxd5 {[%emt 0:01:48]} cxd5 {[%emt 0:00:20]} 16. b3 {[%emt 0:02:16]} Bg4 {[%emt 0:27:20]} 17. Qc7 {[%emt 0:10:07]} Rec8 {[%emt 0:07:21]} 18. Qxb6 {[%emt 0:06:53]} axb6 {[%emt 0:00:02]} 19. Rxc8+ {[%emt 0:02:02]} Rxc8 {[%emt 0:00:02]} 20. h3 {[%emt 0:02:30]} Bxf3 {[%emt 0:06:36]} 21. gxf3 {[%emt 0:00:21]} d4 {[%emt 0:05:41]} 22. Rd1 {[%emt 0:07:06]} Rd8 {[%emt 0:02:39]} 23. Kf1 {[%emt 0:02:30]} dxe3 {[%emt 0:00:10]} 24. fxe3 {[%emt 0:00:10]} b5 {[%emt 0:00:19]} 25. Ke2 {[%emt 0:01:08]} b4 {[%emt 0:00:54]} 26. Be4 {[%emt 0:03:37]} Rxd1 {[%emt 0:00:32]} 27. Kxd1 {[%emt 0:00:01]} b6 {[%emt 0:00:13]} 28. Kc2 {[%emt 0:00:30]} Be7 {[%emt 0:00:16]} 29. Kd3 {[%emt 0:00:10]} Bc5 {[%emt 0:00:07]} 30. Bd5 {[%emt 0:00:38]} Kf8 {[%emt 0:00:58]} 31. e4 {[%emt 0:04:12]} f6 {[%emt 0:00:59]} 32. f4 {[%emt 0:01:27]} Ke7 {[%emt 0:00:36]} 33. Ke2 {[%emt 0:05:49]} g5 {[%emt 0:00:40]} 34. fxg5 {[%emt 0:03:13]} 1/2-1/2

[Event "SVK Extraliga 2019-20"]
[Site "Slovakia"]
[Date "2020.03.01"]
[Round "8.7"]
[White "Sobek, Michal"]
[Black "Varga, Lukas"]
[Result "1-0"]
[ECO "B52"]
[WhiteElo "2036"]
[BlackElo "1926"]
[Annotator "ChessBase"]
[PlyCount "31"]
[EventDate "2019.10.19"]
[EventType "team-tourn"]
[EventCountry "SVK"]
[SourceTitle "playchess.com"]
[Source "ChessBase"]
[SourceQuality "1"]
[WhiteTeam "Modra"]
[BlackTeam "Kosice"]
[TimeControl "40/5400+30:1800+30"]

1. e4 {[%emt 0:00:00]} c5 {[%emt 0:07:08]} 2. Nf3 {[%emt 0:00:00]} d6 {[%emt 0:00:22]} 3. Bb5+ {[%emt 0:00:00]} Bd7 {[%emt 0:00:07]} 4. Bxd7+ {[%emt 0:00:00]} Qxd7 {[%emt 0:00:04]} 5. O-O {[%emt 0:00:06]} Nc6 {[%emt 0:00:16]} 6. c3 {[%emt 0:00:14]} Nf6 {[%emt 0:05:36]} 7. Re1 {[%emt 0:00:06]} g5 {[%emt 0:00:18]} 8. e5 {[%emt 0:02:44]} Nd5 {[%emt 0:06:20]} 9. e6 {[%emt 0:01:26]} fxe6 {[%emt 0:01:12]} 10. Nxg5 {[%emt 0:00:51]} Nf4 {[%emt 0:00:32]} 11. d4 {[%emt 0:01:09]} h6 {[%emt 0:00:49]} 12. Ne4 {[%emt 0:02:00]} Ng6 {[%emt 0:01:36]} 13. d5 {[%emt 0:01:55]} Nd8 {[%emt 0:04:53]} 14. Qh5 {[%emt 0:00:57]} Rg8 {[%emt 0:00:33]} 15. f4 {[%emt 0:00:15]} Nf7 {[%emt 0:03:31]} 16. f5 {[%emt 0:00:50]} 1-0

[Event "SVK Extraliga 2019-20"]
[Site "Slovakia"]
[Date "2020.03.01"]
[Round "8.7"]
[White "Varga, Lukas"]
[Black "Sobek, Michal"]
[Result "*"]
[ECO "B52"]
[WhiteElo "1926"]
[BlackElo "2036"]
[Annotator "ChessBase"]
[PlyCount "22"]
[EventDate "2019.10.19"]
[EventType "team-tourn"]
[EventCountry "SVK"]
[SourceTitle "playchess.com"]
[Source "ChessBase"]
[SourceQuality "1"]
[WhiteTeam "Kosice"]
[BlackTeam "Modra"]
[TimeControl "40/5400+30:1800+30"]

1. e4 {[%emt 0:00:00]} c5 {[%emt 0:07:08]} 2. Nf3 {[%emt 0:00:00]} d6 {[%emt 0:00:22]} 3. Bb5+ {[%emt 0:00:00]} Bd7 {[%emt 0:00:07]} 4. Bxd7+ {[%emt 0:00:00]} Qxd7 {[%emt 0:00:04]} 5. O-O {[%emt 0:00:06]} Nc6 {[%emt 0:00:16]} 6. c3 {[%emt 0:00:14]} Nf6 {[%emt 0:05:36]} 7. Re1 {[%emt 0:00:06]} g5 {[%emt 0:00:18]} 8. e5 {[%emt 0:02:44]} Nd5 {[%emt 0:06:20]} 9. e6 {[%emt 0:01:26]} fxe6 {[%emt 0:01:12]} 10. Nxg5 {[%emt 0:00:51]} Nf4 {[%emt 0:00:32]} 11. d4 {[%emt 0:01:09]} h6 {[%emt 0:00:49]} *

[Event "SVK Extraliga 2019-20"]
[Site "Slovakia"]
[Date "2020.03.01"]
[Round "8.7"]
[White "Bochnickova, Simona"]
[Black "Kantorik, Marian"]
[Result "0-1"]
[ECO "B03"]
[WhiteElo "1655"]
[BlackElo "2221"]
[Annotator "ChessBase"]
[PlyCount "54"]
[EventDate "2019.10.19"]
[EventType "team-tourn"]
[EventCountry "SVK"]
[SourceTitle "playchess.com"]
[Source "ChessBase"]
[SourceQuality "1"]
[WhiteTeam "Bratislava"]
[BlackTeam "Dunajov"]
[TimeControl "40/5400+30:1800+30"]

1. e4 {[%emt 0:00:00]} Nf6 {[%emt 0:00:00]} 2. e5 {[%emt 0:00:00]} Nd5 {[%emt 0:00:00]} 3. d4 {[%emt 0:00:00]} d6 {[%emt 0:00:00]} 4. c4 {[%emt 0:00:00]} Nb6 {[%emt 0:00:00]} 5. exd6 {[%emt 0:00:03]} cxd6 {[%emt 0:00:00]} 6. Nc3 {[%emt 0:00:33]} g6 {[%emt 0:00:00]} 7. Be3 {[%emt 0:01:49]} Bg7 {[%emt 0:00:09]} 8. Rc1 {[%emt 0:00:08]} O-O {[%emt 0:00:09]} 9. b3 {[%emt 0:00:42]} f5 {[%emt 0:05:56]} 10. d5 {[%emt 0:13:35]} N8d7 {[%emt 0:08:11]} 11. Nf3 {[%emt 0:01:41]} Nf6 {[%emt 0:00:23]} 12. Bd3 {[%emt 0:09:03]} h6 {[%emt 0:04:46]} 13. Nh4 {[%emt 0:08:09]} Kh7 {[%emt 0:01:49]} 14. O-O {[%emt 0:03:28]} e5 {[%emt 0:11:04]} 15. dxe6 {[%emt 0:02:58]} Bxe6 {[%emt 0:00:07]} 16. Nf3 {[%emt 0:03:36]} Nbd7 {[%emt 0:05:04]} 17. Bb1 {[%emt 0:02:21]} Ne5 {[%emt 0:02:41]} 18. Nd4 {[%emt 0:01:10]} Bf7 {[%emt 0:01:55]} 19. Ndb5 {[%emt 0:01:53]} d5 {[%emt 0:20:36]} 20. cxd5 {[%emt 0:14:16]} a6 {[%emt 0:01:08]} 21. Na3 {[%emt 0:04:16]} Nxd5 {[%emt 0:02:07]} 22. Nxd5 {[%emt 0:00:22]} Bxd5 {[%emt 0:00:22]} 23. f4 {[%emt 0:01:03]} Ng4 {[%emt 0:01:07]} 24. Bc5 {[%emt 0:00:20]} Qh4 {[%emt 0:00:38]} 25. h3 {[%emt 0:09:59]} Qg3 {[%emt 0:00:42]} 26. Rf2 {[%emt 0:00:18]} Qh2+ {[%emt 0:15:51]} 27. Kf1 {[%emt 0:00:02]} Rfe8 {[%emt 0:00:13]} 0-1

[Event "SVK Extraliga 2019-20"]
[Site "Slovakia"]
[Date "2020.03.01"]
[Round "8.8"]
[White "Danada, Tomas"]
[Black "Gazik, Igor"]
[Result "1-0"]
[ECO "A48"]
[WhiteElo "2302"]
[BlackElo "2256"]
[Annotator "ChessBase"]
[PlyCount "81"]
[EventDate "2019.10.19"]
[EventType "team-tourn"]
[EventCountry "SVK"]
[SourceTitle "playchess.com"]
[Source "ChessBase"]
[SourceQuality "1"]
[WhiteTeam "Prakovce"]
[BlackTeam "Podhajska"]
[TimeControl "40/5400+30:1800+30"]

1. Nf3 {[%emt 0:00:00]} Nf6 {[%emt 0:01:20]} 2. d4 {[%emt 0:00:00]} g6 {[%emt 0:00:12]} 3. c4 {[%emt 0:01:35]} Bg7 {[%emt 0:01:23]} 4. Nc3 {[%emt 0:00:07]} O-O {[%emt 0:00:04]} 5. e4 {[%emt 0:00:03]} d6 {[%emt 0:00:03]} 6. h3 {[%emt 0:00:07]} Nbd7 {[%emt 0:03:18]} 7. Be3 {[%emt 0:00:19]} e5 {[%emt 0:00:05]} 8. d5 {[%emt 0:00:04]} Nc5 {[%emt 0:03:45]} 9. Nd2 {[%emt 0:00:10]} a5 {[%emt 0:00:03]} 10. g4 {[%emt 0:00:40]} c6 {[%emt 0:00:16]} 11. Be2 {[%emt 0:00:16]} Bd7 {[%emt 0:05:13]} 12. h4 {[%emt 0:01:24]} a4 {[%emt 0:13:32]} 13. g5 {[%emt 0:06:14]} Ne8 {[%emt 0:07:56]} 14. h5 {[%emt 0:02:54]} Qa5 {[%emt 0:04:09]} 15. Rb1 {[%emt 0:00:51]} Nc7 {[%emt 0:00:25]} 16. Kf1 {[%emt 0:10:25]} cxd5 {[%emt 0:15:33]} 17. exd5 {[%emt 0:00:32]} Bf5 {[%emt 0:00:37]} 18. Bxc5 {[%emt 0:00:25]} Qxc5 {[%emt 0:01:20]} 19. Nde4 {[%emt 0:01:59]} Qd4 {[%emt 0:00:50]} 20. Rh4 {[%emt 0:00:20]} Kh8 {[%emt 0:05:32]} 21. h6 {[%emt 0:04:09]} Bxh6 {[%emt 0:09:27]} 22. Rxh6 {[%emt 0:00:33]} f6 {[%emt 0:00:41]} 23. Nxf6 {[%emt 0:08:40]} Rxf6 {[%emt 0:00:33]} 24. gxf6 {[%emt 0:00:06]} Bxb1 {[%emt 0:03:11]} 25. Qxd4 {[%emt 0:00:18]} exd4 {[%emt 0:00:05]} 26. Nxb1 {[%emt 0:00:04]} Rf8 {[%emt 0:00:49]} 27. Rh4 {[%emt 0:00:11]} Rxf6 {[%emt 0:00:04]} 28. Rxd4 {[%emt 0:00:04]} Na6 {[%emt 0:00:07]} 29. Kg2 {[%emt 0:04:32]} Nc5 {[%emt 0:01:12]} 30. Kg3 {[%emt 0:02:16]} g5 {[%emt 0:00:15]} 31. Nc3 {[%emt 0:01:38]} Kg7 {[%emt 0:00:29]} 32. Ne4 {[%emt 0:00:21]} Rh6 {[%emt 0:01:34]} 33. Nxc5 {[%emt 0:00:20]} dxc5 {[%emt 0:00:01]} 34. Re4 {[%emt 0:00:44]} Rb6 {[%emt 0:00:11]} 35. Bd1 {[%emt 0:01:20]} Rxb2 {[%emt 0:00:40]} 36. Bxa4 {[%emt 0:00:06]} Rxa2 {[%emt 0:00:15]} 37. d6 {[%emt 0:00:38]} Rxa4 {[%emt 0:04:35]} 38. d7 {[%emt 0:00:05]} Ra3+ {[%emt 0:00:04]} 39. Re3 {[%emt 0:00:04]} Ra8 {[%emt 0:00:11]} 40. Re8 {[%emt 0:00:03]} Ra3+ {[%emt 0:00:07]} 41. Kg2 {[%emt 0:30:06]} 1-0

[Event "SVK Extraliga 2019-20"]
[Site "Slovakia"]
[Date "2020.03.01"]
[Round "8.8"]
[White "Federic, Pavol"]
[Black "Nadzamova, Viktoria"]
[Result "*"]
[ECO "C80"]
[WhiteElo "2120"]
[BlackElo "1960"]
[Annotator "ChessBase"]
[PlyCount "30"]
[EventDate "2019.10.19"]
[EventType "team-tourn"]
[EventCountry "SVK"]
[SourceTitle "playchess.com"]
[Source "ChessBase"]
[SourceQuality "1"]
[WhiteTeam "Modra"]
[BlackTeam "Kosice"]
[TimeControl "40/5400+30:1800+30"]

1. e4 {[%emt 0:00:00]} e5 {[%emt 0:00:00]} 2. Nf3 {[%emt 0:00:00]} Nc6 {[%emt 0:00:00]} 3. Bb5 {[%emt 0:00:00]} a6 {[%emt 0:00:00]} 4. Ba4 {[%emt 0:00:00]} Nf6 {[%emt 0:00:00]} 5. O-O {[%emt 0:00:13]} Nxe4 {[%emt 0:00:00]} 6. Re1 {[%emt 0:00:06]} Nc5 {[%emt 0:00:00]} 7. Bxc6 {[%emt 0:01:19]} dxc6 {[%emt 0:00:00]} 8. Rxe5+ {[%emt 0:01:21]} Ne6 {[%emt 0:00:22]} 9. d4 {[%emt 0:01:06]} Bd6 {[%emt 0:00:16]} 10. Re1 {[%emt 0:00:47]} O-O {[%emt 0:00:16]} 11. c4 {[%emt 0:01:23]} c5 {[%emt 0:01:54]} 12. d5 {[%emt 0:00:39]} Nf4 {[%emt 0:00:11]} 13. Nc3 {[%emt 0:00:44]} Bf5 {[%emt 0:05:40]} 14. Ne4 {[%emt 0:03:54]} Re8 {[%emt 0:01:25]} 15. Bxf4 {[%emt 0:06:23]} Bxe4 {[%emt 0:01:20]} *

[Event "SVK Extraliga 2019-20"]
[Site "Slovakia"]
[Date "2020.03.01"]
[Round "8.8"]
[White "Pcola st., Jaroslav"]
[Black "Kovacik, Emil"]
[Result "1/2-1/2"]
[ECO "C15"]
[WhiteElo "2076"]
[BlackElo "2117"]
[Annotator "ChessBase"]
[PlyCount "92"]
[EventDate "2019.10.19"]
[EventType "team-tourn"]
[EventCountry "SVK"]
[SourceTitle "playchess.com"]
[Source "ChessBase"]
[SourceQuality "1"]
[WhiteTeam "Snina"]
[BlackTeam "Dubnica"]
[TimeControl "40/5400+30:1800+30"]

1. e4 {[%emt 0:00:00]} e6 {[%emt 0:00:00]} 2. d4 {[%emt 0:00:00]} d5 {[%emt 0:00:00]} 3. Nc3 {[%emt 0:01:18]} Bb4 {[%emt 0:00:22]} 4. Nge2 {[%emt 0:01:52]} dxe4 {[%emt 0:01:34]} 5. a3 {[%emt 0:01:00]} Be7 {[%emt 0:00:22]} 6. Nxe4 {[%emt 0:00:40]} Nf6 {[%emt 0:00:15]} 7. Nxf6+ {[%emt 0:01:12]} Bxf6 {[%emt 0:00:15]} 8. Be3 {[%emt 0:00:29]} O-O {[%emt 0:00:29]} 9. Ng3 {[%emt 0:10:52]} c5 {[%emt 0:03:41]} 10. dxc5 {[%emt 0:06:16]} Bxb2 {[%emt 0:00:58]} 11. Qxd8 {[%emt 0:00:51]} Rxd8 {[%emt 0:00:03]} 12. Rb1 {[%emt 0:01:05]} Bc3+ {[%emt 0:00:32]} 13. Ke2 {[%emt 0:00:24]} Nc6 {[%emt 0:08:47]} 14. Ne4 {[%emt 0:03:02]} Ba5 {[%emt 0:06:51]} 15. Kf3 {[%emt 0:17:15]} Ne5+ {[%emt 0:09:27]} 16. Kg3 {[%emt 0:02:11]} f5 {[%emt 0:06:48]} 17. Nd6 {[%emt 0:06:30]} Bc7 {[%emt 0:11:13]} 18. Bg5 {[%emt 0:04:44]} Bxd6 {[%emt 0:08:43]} 19. Bxd8 {[%emt 0:00:47]} Bxc5 {[%emt 0:00:05]} 20. Be2 {[%emt 0:04:54]} Bd6 {[%emt 0:10:28]} 21. Kh3 {[%emt 0:05:04]} Nf7 {[%emt 0:04:29]} 22. Rhd1 {[%emt 0:02:18]} Bxa3 {[%emt 0:02:14]} 23. Ra1 {[%emt 0:07:44]} Bc5 {[%emt 0:00:42]} 24. f4 {[%emt 0:01:25]} e5 {[%emt 0:14:14]} 25. Bc4 {[%emt 0:04:13]} exf4 {[%emt 0:01:05]} 26. Bg5 {[%emt 0:02:16]} Kf8 {[%emt 0:02:46]} 27. Bxf4 {[%emt 0:01:19]} Be7 {[%emt 0:00:03]} 28. Kg3 {[%emt 0:03:52]} g5 {[%emt 0:02:13]} 29. Bc7 {[%emt 0:02:05]} f4+ {[%emt 0:00:16]} 30. Kf2 {[%emt 0:03:21]} Bg4 {[%emt 0:00:29]} 31. Be2 {[%emt 0:01:05]} Bxe2 {[%emt 0:00:58]} 32. Kxe2 {[%emt 0:00:06]} Rc8 {[%emt 0:00:07]} 33. Ba5 {[%emt 0:00:31]} Rxc2+ {[%emt 0:00:10]} 34. Rd2 {[%emt 0:00:15]} Rxd2+ {[%emt 0:01:23]} 35. Bxd2 {[%emt 0:00:09]} Bc5 {[%emt 0:00:26]} 36. h4 {[%emt 0:01:32]} h6 {[%emt 0:00:00]} 37. hxg5 {[%emt 0:00:35]} hxg5 {[%emt 0:00:22]} 38. Rb1 {[%emt 0:03:09]} b6 {[%emt 0:00:34]} 39. Bb4 {[%emt 0:00:54]} Bxb4 {[%emt 0:02:01]} 40. Rxb4 {[%emt 0:00:03]} Nd6 {[%emt 0:03:19]} 41. g3 {[%emt 0:02:47]} fxg3 {[%emt 0:08:03]} 42. Rg4 {[%emt 0:00:16]} Ke7 {[%emt 0:01:42]} 43. Rxg5 {[%emt 0:00:45]} Ke6 {[%emt 0:00:17]} 44. Rxg3 {[%emt 0:02:02]} Kd5 {[%emt 0:00:43]} 45. Kd3 {[%emt 0:01:59]} Kc5 {[%emt 0:02:24]} 46. Rg4 {[%emt 0:03:13]} b5 {[%emt 0:08:27] Ke4} 1/2-1/2

[Event "SVK Extraliga 2019-20"]
[Site "Slovakia"]
[Date "2020.03.01"]
[Round "8.8"]
[White "Magat, Jozef"]
[Black "Striskova, Lucia"]
[Result "1/2-1/2"]
[ECO "A48"]
[WhiteElo "2037"]
[BlackElo "1649"]
[Annotator "ChessBase"]
[PlyCount "82"]
[EventDate "2019.10.19"]
[EventType "team-tourn"]
[EventCountry "SVK"]
[SourceTitle "playchess.com"]
[Source "ChessBase"]
[SourceQuality "1"]
[WhiteTeam "Dunajov"]
[BlackTeam "Bratislava"]
[TimeControl "40/5400+30:1800+30"]

1. d4 {[%emt 0:00:00]} Nf6 {[%emt 0:00:00]} 2. Nf3 {[%emt 0:00:00]} g6 {[%emt 0:00:02]} 3. c4 {[%emt 0:00:42]} Bg7 {[%emt 0:00:07]} 4. Nc3 {[%emt 0:00:06]} O-O {[%emt 0:00:10]} 5. e4 {[%emt 0:00:33]} d6 {[%emt 0:00:17]} 6. h3 {[%emt 0:00:15]} c5 {[%emt 0:02:34]} 7. d5 {[%emt 0:01:04]} e6 {[%emt 0:01:10]} 8. Bd3 {[%emt 0:03:47]} exd5 {[%emt 0:02:55]} 9. cxd5 {[%emt 0:00:51]} a6 {[%emt 0:03:49]} 10. a4 {[%emt 0:00:44]} Re8 {[%emt 0:00:45]} 11. O-O {[%emt 0:02:58]} Nbd7 {[%emt 0:00:35]} 12. Bg5 {[%emt 0:06:10]} Qc7 {[%emt 0:02:54]} 13. Re1 {[%emt 0:11:45]} Ne5 {[%emt 0:04:15]} 14. Nxe5 {[%emt 0:02:22]} Rxe5 {[%emt 0:00:19]} 15. Bf4 {[%emt 0:10:15]} Re8 {[%emt 0:01:01]} 16. Qd2 {[%emt 0:02:03]} Bd7 {[%emt 0:03:11]} 17. a5 {[%emt 0:10:17]} Re7 {[%emt 0:15:24]} 18. Bc4 {[%emt 0:04:36]} Rae8 {[%emt 0:00:28]} 19. e5 {[%emt 0:12:32]} Nh5 {[%emt 0:05:14]} 20. exd6 {[%emt 0:01:38]} Rxe1+ {[%emt 0:01:35]} 21. Rxe1 {[%emt 0:00:07]} Rxe1+ {[%emt 0:05:49]} 22. Qxe1 {[%emt 0:00:05]} Qc8 {[%emt 0:10:15]} 23. Bg5 {[%emt 0:08:58]} f6 {[%emt 0:04:19]} 24. Bh4 {[%emt 0:02:30]} Bf8 {[%emt 0:01:31]} 25. Ne4 {[%emt 0:05:30]} f5 {[%emt 0:00:48]} 26. Ng3 {[%emt 0:05:35]} Bxd6 {[%emt 0:01:33]} 27. Nxh5 {[%emt 0:00:18]} gxh5 {[%emt 0:00:09]} 28. Qc3 {[%emt 0:01:01]} Qe8 {[%emt 0:04:23]} 29. Bg5 {[%emt 0:01:29]} Qe5 {[%emt 0:04:27]} 30. Qxe5 {[%emt 0:03:43]} Bxe5 {[%emt 0:00:07]} 31. Be3 {[%emt 0:01:27]} Bd6 {[%emt 0:00:36]} 32. h4 {[%emt 0:00:32]} Kf7 {[%emt 0:00:30]} 33. g3 {[%emt 0:00:13]} Bb5 {[%emt 0:01:33]} 34. Bb3 {[%emt 0:00:33]} Bd3 {[%emt 0:01:29]} 35. Bd1 {[%emt 0:01:06]} Kg6 {[%emt 0:00:52]} 36. Bf4 {[%emt 0:01:02]} Bxf4 {[%emt 0:01:08]} 37. gxf4 {[%emt 0:00:01]} Be4 {[%emt 0:04:16]} 38. d6 {[%emt 0:00:34]} Bc6 {[%emt 0:00:24]} 39. Bf3 {[%emt 0:01:01]} Kf6 {[%emt 0:00:25]} 40. d7 {[%emt 0:00:45]} Ke7 {[%emt 0:00:20]} 41. Bxh5 {[%emt 0:30:40]} Kxd7 {[%emt 0:30:13]} 1/2-1/2

[Event "SVK Extraliga 2019-20"]
[Site "Slovakia"]
[Date "2020.03.01"]
[Round "8.8"]
[White "Nadzamova, Viktoria"]
[Black "Federic, Pavol"]
[Result "0-1"]
[ECO "C80"]
[WhiteElo "1960"]
[BlackElo "2120"]
[Annotator "NA"]
[PlyCount "60"]
[EventDate "2019.10.19"]
[EventType "team-tourn"]
[EventCountry "SVK"]
[SourceTitle "playchess.com"]
[Source "ChessBase"]
[SourceQuality "1"]
[WhiteTeam "Kosice"]
[BlackTeam "Modra"]
[TimeControl "40/5400+30:1800+30"]

1. e4 {[%emt 0:00:00]} e5 {[%emt 0:00:00]} 2. Nf3 {[%emt 0:00:00]} Nc6 {[%emt 0:00:00]} 3. Bb5 {[%emt 0:00:00]} a6 {[%emt 0:00:00]} 4. Ba4 {[%emt 0:00:00]} Nf6 {[%emt 0:00:00]} 5. O-O {[%emt 0:00:13]} Nxe4 {[%emt 0:00:00]} 6. Re1 {[%emt 0:00:06]} Nc5 {[%emt 0:00:00]} 7. Bxc6 {[%emt 0:01:19]} dxc6 {[%emt 0:00:00]} 8. Rxe5+ {[%emt 0:01:21] C80: Open Ruy Lopez: Sidelines and 9 Nbd2.} Ne6 {[%emt 0:00:22]} 9. d4 {[%emt 0:01:06]} Bd6 {[%emt 0:00:16]} 10. Re1 {[%emt 0:00:47]} O-O {[%emt 0:00:16]} 11. c4 {[%emt 0:01:23] [#]} c5 $146 {[%emt 0:01:54]} ({Predecessor:} 11... b6 12. Nc3 Bb7 13. Ne4 Bf4 14. Bxf4 Nxf4 15. Qd2 Ng6 16. c5 Bc8 17. Rac1 b5 {1-0 (55) Grima Crespo,E (2030)-Illan Garcia,F (2005) Castelldefels 2001}) 12. d5 {[%emt 0:00:39]} Nf4 {[%emt 0:00:11]} 13. Nc3 {[%emt 0:00:44]} Bf5 {[%emt 0:05:40]} 14. Ne4 {[%emt 0:03:54]} Re8 {[%emt 0:01:25]} 15. Bxf4 {[%emt 0:06:23]} Bxe4 {[%emt 0:01:20]} 16. Bxd6 {[%emt 0:00:20]} Qxd6 {[%emt 0:02:15]} 17. Ng5 {[%emt 0:05:45]} Bg6 {[%emt 0:00:50]} 18. Qf3 {[%emt 0:02:01]} Re5 {[%emt 0:04:24]} 19. Qg3 {[%emt 0:04:09]} Rae8 {[%emt 0:03:53]} 20. f4 {[%emt 0:00:27]} R5e7 {[%emt 0:03:26]} 21. Rxe7 {[%emt 0:04:08]} Qxe7 {[%emt 0:00:21]} 22. Nf3 {[%emt 0:02:24]} Qe3+ {[%emt 0:02:59]} 23. Kh1 {[%emt 0:04:02]} Re4 {[%emt 0:03:23]} 24. Re1 {[%emt 0:01:06]} Qd3 {[%emt 0:00:20]} 25. b3 {[%emt 0:05:16]} h6 {[%emt 0:02:57]} 26. Qf2 {[%emt 0:01:32]} Rxf4 {[%emt 0:03:53]} 27. Qxc5 {[%emt 0:00:47]} Be4 {[%emt 0:00:37]} 28. Ng1 {[%emt 0:10:38]} Rg4 {[%emt 0:07:01]} 29. Re2 {[%emt 0:03:11]} Rxg2 {[%emt 0:00:55]} 30. Rxg2 {[%emt 0:03:02] [#]} Qf1 {[%emt 0:00:07] Pin} 0-1